[Event "Titled Tuesday Blitz July 18 Late 2023"]
[White "Navyblue1"]
[Black "Seletsky, Grigory"]
[BlackFideId "14112191"]
[WhiteElo "1860"]
[BlackElo "2504"]
[Result "0-1"]
[Round "3"]
[TimeControl "180+2"]
[Date "2023.07.18"]
[WhiteClock "0:00:00"]
[BlackClock "0:01:03"]
[Board "139"]

1. d4 {[%clk 0:03:00]}  c5 {[%clk 0:02:57]} 2. d5 {[%clk 0:02:58]}  e5 {[%clk 0:02:58]} 3. dxe6 {[%clk 0:02:53]}  fxe6 {[%clk 0:02:58]} 4. c4 {[%clk 0:02:52]}  Nf6 {[%clk 0:02:55]} 5. Nc3 {[%clk 0:02:51]}  d5 {[%clk 0:02:51]} 6. cxd5 {[%clk 0:02:48]}  exd5 {[%clk 0:02:52]} 7. e3 {[%clk 0:02:40]}  Nc6 {[%clk 0:02:51]} 8. Bb5 {[%clk 0:02:35]}  a6 {[%clk 0:02:46]} 9. Bxc6+ {[%clk 0:01:53]}  bxc6 {[%clk 0:02:47]} 10. Nge2 {[%clk 0:01:53]}  Bd6 {[%clk 0:02:46]} 11. Qa4 {[%clk 0:01:45]}  Bd7 {[%clk 0:02:36]} 12. Qh4 {[%clk 0:01:43]}  O-O {[%clk 0:02:34]} 13. O-O {[%clk 0:01:42]}  c4 {[%clk 0:02:31]} 14. h3 {[%clk 0:01:27]}  a5 {[%clk 0:02:27]} 15. Rd1 {[%clk 0:01:09]}  Qe7 {[%clk 0:02:26]} 16. Bd2 {[%clk 0:00:20]}  a4 {[%clk 0:02:25]} 17. Be1 {[%clk 0:00:19]}  Qe5 {[%clk 0:02:19]} 18. Ng3 {[%clk 0:00:16]}  Rfb8 {[%clk 0:02:10]} 19. Rab1 {[%clk 0:00:14]}  a3 {[%clk 0:02:07]} 20. bxa3 {[%clk 0:00:14]}  Bxa3 {[%clk 0:02:07]} 21. Qd4 {[%clk 0:00:13]}  Qxd4 {[%clk 0:02:06]} 22. Rxd4 {[%clk 0:00:13]}  Rxb1 {[%clk 0:02:02]} 23. Nxb1 {[%clk 0:00:14]}  Bb2 {[%clk 0:01:50]} 24. Rd2 {[%clk 0:00:12]}  Rxa2 {[%clk 0:01:49]} 25. Rc2 {[%clk 0:00:12]}  c5 {[%clk 0:01:37]} 26. Nc3 {[%clk 0:00:11]}  Bxc3 {[%clk 0:01:36]} 27. Rxa2 {[%clk 0:00:11]}  Bxe1 {[%clk 0:01:36]} 28. Kf1 {[%clk 0:00:08]}  Bb4 {[%clk 0:01:33]} 29. f3 {[%clk 0:00:05]}  c3 {[%clk 0:01:33]} 30. Ne2 {[%clk 0:00:05]}  Bb5 {[%clk 0:01:32]} 31. Kf2 {[%clk 0:00:05]}  Nd7 {[%clk 0:01:11]} 32. Ra8+ {[%clk 0:00:02]}  Kf7 {[%clk 0:01:09]} 33. Ra7 {[%clk 0:00:00]}  c2 {[%clk 0:01:03]} 0-1


[Site "https://www.chess.com"]

[Event "Titled Tuesday Blitz July 18 Late 2023"]
[White "Burke, Paul"]
[Black "Hajiyev, Kanan"]
[WhiteFideId "2605767"]
[BlackFideId "13404148"]
[WhiteElo "1993"]
[BlackElo "2555"]
[Result "0-1"]
[Round "3"]
[TimeControl "180+2"]
[Date "2023.07.18"]
[WhiteClock "0:00:14"]
[BlackClock "0:00:58"]
[Board "140"]

1. e4 {[%clk 0:03:00]}  c6 {[%clk 0:03:00]} 2. d4 {[%clk 0:02:59]}  d5 {[%clk 0:03:01]} 3. exd5 {[%clk 0:03:00]}  cxd5 {[%clk 0:03:02]} 4. c4 {[%clk 0:03:00]}  e6 {[%clk 0:03:02]} 5. Nc3 {[%clk 0:02:59]}  Nf6 {[%clk 0:03:02]} 6. Nf3 {[%clk 0:03:00]}  Bb4 {[%clk 0:03:02]} 7. Be2 {[%clk 0:02:59]}  O-O {[%clk 0:03:02]} 8. O-O {[%clk 0:02:59]}  dxc4 {[%clk 0:03:02]} 9. Bxc4 {[%clk 0:02:58]}  Nc6 {[%clk 0:03:02]} 10. Bg5 {[%clk 0:02:54]}  h6 {[%clk 0:03:00]} 11. Bxf6 {[%clk 0:02:53]}  Qxf6 {[%clk 0:03:01]} 12. a3 {[%clk 0:02:51]}  Bd6 {[%clk 0:02:50]} 13. Ne4 {[%clk 0:02:48]}  Qf4 {[%clk 0:02:50]} 14. Nxd6 {[%clk 0:02:48]}  Qxd6 {[%clk 0:02:51]} 15. d5 {[%clk 0:02:36]}  exd5 {[%clk 0:02:41]} 16. Qxd5 {[%clk 0:02:35]}  Qc7 {[%clk 0:02:27]} 17. Rac1 {[%clk 0:01:58]}  Be6 {[%clk 0:02:20]} 18. Qd3 {[%clk 0:01:49]}  Rad8 {[%clk 0:02:17]} 19. Qc2 {[%clk 0:01:46]}  Bg4 {[%clk 0:02:12]} 20. Be2 {[%clk 0:01:37]}  Rfe8 {[%clk 0:02:10]} 21. Rfe1 {[%clk 0:01:34]}  Qf4 {[%clk 0:02:01]} 22. h3 {[%clk 0:01:27]}  Bxf3 {[%clk 0:01:38]} 23. Bxf3 {[%clk 0:01:25]}  Nd4 {[%clk 0:01:33]} 24. Rxe8+ {[%clk 0:01:16]}  Rxe8 {[%clk 0:01:34]} 25. Qd1 {[%clk 0:01:03]}  Nxf3+ {[%clk 0:01:28]} 26. gxf3 {[%clk 0:01:03]}  Re6 {[%clk 0:01:21]} 27. Rc8+ {[%clk 0:01:00]}  Kh7 {[%clk 0:01:21]} 28. Qd3+ {[%clk 0:00:53]}  Rg6+ {[%clk 0:01:20]} 29. Kf1 {[%clk 0:00:51]}  Qh2 {[%clk 0:01:15]} 30. Qf5 {[%clk 0:00:33]}  Qd6 {[%clk 0:00:59]} 31. Rc2 {[%clk 0:00:14]}  Qd1# {[%clk 0:00:58]} 0-1


[Site "https://www.chess.com"]

[Event "Titled Tuesday Blitz July 18 Late 2023"]
[White "Rottenwohrer Suarez, Juan"]
[Black "Tarasova, Viktoriya"]
[WhiteFideId "32068182"]
[BlackFideId "4175840"]
[WhiteElo "2533"]
[BlackElo "2364"]
[Result "0-1"]
[Round "3"]
[TimeControl "180+2"]
[Date "2023.07.18"]
[WhiteClock "0:00:10"]
[BlackClock "0:00:13"]
[Board "142"]

1. d4 {[%clk 0:03:00]}  Nf6 {[%clk 0:02:59]} 2. Bf4 {[%clk 0:02:55]}  d5 {[%clk 0:02:59]} 3. Nf3 {[%clk 0:02:52]}  e6 {[%clk 0:02:58]} 4. e3 {[%clk 0:02:46]}  c5 {[%clk 0:02:58]} 5. Bb5+ {[%clk 0:02:44]}  Nc6 {[%clk 0:02:57]} 6. O-O {[%clk 0:02:44]}  Bd6 {[%clk 0:02:55]} 7. dxc5 {[%clk 0:02:35]}  Bxc5 {[%clk 0:02:54]} 8. c4 {[%clk 0:02:34]}  O-O {[%clk 0:02:53]} 9. Nc3 {[%clk 0:02:33]}  dxc4 {[%clk 0:02:49]} 10. Bxc6 {[%clk 0:02:24]}  bxc6 {[%clk 0:02:48]} 11. Qa4 {[%clk 0:02:23]}  Qb6 {[%clk 0:02:45]} 12. Ne5 {[%clk 0:02:08]}  Qxb2 {[%clk 0:02:38]} 13. Qxc4 {[%clk 0:02:04]}  Qb4 {[%clk 0:02:29]} 14. Qxb4 {[%clk 0:01:27]}  Bxb4 {[%clk 0:02:29]} 15. Na4 {[%clk 0:01:28]}  Ba6 {[%clk 0:02:06]} 16. Rfc1 {[%clk 0:01:22]}  Bb5 {[%clk 0:01:42]} 17. Nxc6 {[%clk 0:01:14]}  Ba3 {[%clk 0:01:39]} 18. Rc3 {[%clk 0:01:14]}  Bxa4 {[%clk 0:01:35]} 19. Nd4 {[%clk 0:00:45]}  Bb2 {[%clk 0:01:27]} 20. Rc4 {[%clk 0:00:38]}  Bxa1 {[%clk 0:01:26]} 21. Rxa4 {[%clk 0:00:38]}  Bxd4 {[%clk 0:01:26]} 22. exd4 {[%clk 0:00:38]}  Nd5 {[%clk 0:01:23]} 23. Bd6 {[%clk 0:00:35]}  Rfc8 {[%clk 0:01:23]} 24. Bc5 {[%clk 0:00:36]}  a6 {[%clk 0:01:23]} 25. g3 {[%clk 0:00:36]}  e5 {[%clk 0:01:22]} 26. Kg2 {[%clk 0:00:32]}  exd4 {[%clk 0:01:22]} 27. Bxd4 {[%clk 0:00:33]}  h6 {[%clk 0:01:17]} 28. h4 {[%clk 0:00:33]}  Rd8 {[%clk 0:01:17]} 29. Be5 {[%clk 0:00:33]}  Ne7 {[%clk 0:01:15]} 30. Bc3 {[%clk 0:00:32]}  Rd3 {[%clk 0:01:07]} 31. Be5 {[%clk 0:00:26]}  Nc6 {[%clk 0:01:05]} 32. Ba1 {[%clk 0:00:24]}  Rd1 {[%clk 0:01:04]} 33. Bc3 {[%clk 0:00:24]}  Rc1 {[%clk 0:01:04]} 34. Bb2 {[%clk 0:00:25]}  Rc2 {[%clk 0:01:04]} 35. Ba1 {[%clk 0:00:24]}  a5 {[%clk 0:01:02]} 36. Rg4 {[%clk 0:00:21]}  g6 {[%clk 0:00:56]} 37. h5 {[%clk 0:00:21]}  g5 {[%clk 0:00:55]} 38. Bf6 {[%clk 0:00:20]}  Rxa2 {[%clk 0:00:52]} 39. Rc4 {[%clk 0:00:20]}  Rc8 {[%clk 0:00:48]} 40. Rc5 {[%clk 0:00:20]}  a4 {[%clk 0:00:47]} 41. Rc4 {[%clk 0:00:13]}  a3 {[%clk 0:00:46]} 42. Rc3 {[%clk 0:00:14]}  Na7 {[%clk 0:00:36]} 43. Rb3 {[%clk 0:00:12]}  Kf8 {[%clk 0:00:26]} 44. Rb7 {[%clk 0:00:10]}  Nc6 {[%clk 0:00:24]} 45. Rb6 {[%clk 0:00:08]}  Rc2 {[%clk 0:00:22]} 46. Ra6 {[%clk 0:00:08]}  a2 {[%clk 0:00:22]} 47. Kh3 {[%clk 0:00:08]}  Rxf2 {[%clk 0:00:21]} 48. Kg4 {[%clk 0:00:07]}  Rxf6 {[%clk 0:00:20]} 49. Rxa2 {[%clk 0:00:07]}  Ne5+ {[%clk 0:00:20]} 50. Kh3 {[%clk 0:00:07]}  Kg7 {[%clk 0:00:21]} 51. Rb2 {[%clk 0:00:07]}  g4+ {[%clk 0:00:21]} 52. Kg2 {[%clk 0:00:06]}  Rf3 {[%clk 0:00:19]} 53. Re2 {[%clk 0:00:06]}  f6 {[%clk 0:00:18]} 54. Rd2 {[%clk 0:00:05]}  Rcc3 {[%clk 0:00:18]} 55. Re2 {[%clk 0:00:05]}  Rxg3+ {[%clk 0:00:18]} 56. Kh2 {[%clk 0:00:05]}  Rh3+ {[%clk 0:00:16]} 57. Kg2 {[%clk 0:00:06]}  Rcg3+ {[%clk 0:00:16]} 58. Kf1 {[%clk 0:00:05]}  Rh1+ {[%clk 0:00:16]} 59. Kf2 {[%clk 0:00:06]}  Rh2+ {[%clk 0:00:16]} 60. Kxg3 {[%clk 0:00:06]}  Rxe2 {[%clk 0:00:17]} 61. Kh4 {[%clk 0:00:07]}  f5 {[%clk 0:00:13]} 62. Kg3 {[%clk 0:00:08]}  Kf6 {[%clk 0:00:14]} 63. Kf4 {[%clk 0:00:08]}  Rf2+ {[%clk 0:00:13]} 64. Kg3 {[%clk 0:00:09]}  Rf3+ {[%clk 0:00:14]} 65. Kh4 {[%clk 0:00:10]}  Rh3# {[%clk 0:00:13]} 0-1


[Site "https://www.chess.com"]

[Event "Titled Tuesday Blitz July 18 Late 2023"]
[White "KorolDimitriy75"]
[Black "D`Arruda, Ricardo D."]
[BlackFideId "100692"]
[WhiteElo "2415"]
[BlackElo "2510"]
[Result "0-1"]
[Round "3"]
[TimeControl "180+2"]
[Date "2023.07.18"]
[WhiteClock "0:00:00"]
[BlackClock "0:01:35"]
[Board "144"]

1. d4 {[%clk 0:03:00]}  Nf6 {[%clk 0:02:58]} 2. c4 {[%clk 0:03:01]}  e5 {[%clk 0:02:57]} 3. dxe5 {[%clk 0:02:59]}  Ne4 {[%clk 0:02:57]} 4. Nd2 {[%clk 0:02:57]}  Nc5 {[%clk 0:02:57]} 5. Ngf3 {[%clk 0:02:54]}  Nc6 {[%clk 0:02:56]} 6. e3 {[%clk 0:02:48]}  d6 {[%clk 0:02:55]} 7. exd6 {[%clk 0:02:43]}  Bxd6 {[%clk 0:02:56]} 8. Be2 {[%clk 0:02:40]}  Bf5 {[%clk 0:02:54]} 9. O-O {[%clk 0:02:34]}  Qf6 {[%clk 0:02:54]} 10. Nb3 {[%clk 0:02:09]}  O-O-O {[%clk 0:02:53]} 11. Nbd4 {[%clk 0:02:03]}  Be4 {[%clk 0:02:52]} 12. Bd2 {[%clk 0:01:24]}  Rhe8 {[%clk 0:02:36]} 13. Bc3 {[%clk 0:01:21]}  Qh6 {[%clk 0:02:35]} 14. g3 {[%clk 0:01:15]}  Ne5 {[%clk 0:02:19]} 15. Nxe5 {[%clk 0:01:04]}  Bxe5 {[%clk 0:02:20]} 16. f4 {[%clk 0:00:51]}  Bf6 {[%clk 0:02:13]} 17. b4 {[%clk 0:00:32]}  Ne6 {[%clk 0:02:10]} 18. Qd2 {[%clk 0:00:27]}  c5 {[%clk 0:02:00]} 19. bxc5 {[%clk 0:00:25]}  Nxc5 {[%clk 0:02:01]} 20. Rad1 {[%clk 0:00:20]}  Qh3 {[%clk 0:01:54]} 21. Rf2 {[%clk 0:00:20]}  h5 {[%clk 0:01:40]} 22. Bf1 {[%clk 0:00:12]}  Qg4 {[%clk 0:01:40]} 23. Be2 {[%clk 0:00:10]}  Qg6 {[%clk 0:01:40]} 24. Bf3 {[%clk 0:00:06]}  h4 {[%clk 0:01:38]} 25. Kg2 {[%clk 0:00:03]}  hxg3 {[%clk 0:01:36]} 26. hxg3 {[%clk 0:00:00]}  Bh4 {[%clk 0:01:35]} 0-1


[Site "https://www.chess.com"]

[Event "Titled Tuesday Blitz July 18 Late 2023"]
[White "Shapiro, Viktor"]
[Black "Herbst, Richard"]
[WhiteFideId "4175700"]
[BlackFideId "2041251"]
[WhiteElo "2489"]
[BlackElo "2321"]
[Result "1-0"]
[Round "3"]
[TimeControl "180+2"]
[Date "2023.07.18"]
[WhiteClock "0:01:23"]
[BlackClock "0:01:43"]
[Board "145"]

1. c4 {[%clk 0:03:00]}  c6 {[%clk 0:02:58]} 2. Nc3 {[%clk 0:03:00]}  d5 {[%clk 0:02:58]} 3. d4 {[%clk 0:03:00]}  Nf6 {[%clk 0:02:58]} 4. Nf3 {[%clk 0:03:00]}  e6 {[%clk 0:02:58]} 5. Bg5 {[%clk 0:03:00]}  h6 {[%clk 0:02:52]} 6. Bh4 {[%clk 0:03:00]}  g5 {[%clk 0:02:46]} 7. Bg3 {[%clk 0:03:00]}  dxc4 {[%clk 0:02:47]} 8. a4 {[%clk 0:02:59]}  Bb4 {[%clk 0:02:44]} 9. e3 {[%clk 0:02:58]}  b5 {[%clk 0:02:40]} 10. Nd2 {[%clk 0:02:51]}  Bxc3 {[%clk 0:02:36]} 11. bxc3 {[%clk 0:02:50]}  a6 {[%clk 0:02:35]} 12. h4 {[%clk 0:02:49]}  Rg8 {[%clk 0:02:24]} 13. hxg5 {[%clk 0:02:48]}  hxg5 {[%clk 0:02:25]} 14. Rb1 {[%clk 0:02:41]}  Nbd7 {[%clk 0:02:22]} 15. Bxc4 {[%clk 0:02:36]}  bxc4 {[%clk 0:02:20]} 16. Nxc4 {[%clk 0:02:37]}  Ne4 {[%clk 0:02:19]} 17. Qf3 {[%clk 0:02:26]}  Nxg3 {[%clk 0:02:08]} 18. Qxg3 {[%clk 0:02:12]}  Nf6 {[%clk 0:02:04]} 19. Ne5 {[%clk 0:01:43]}  Bd7 {[%clk 0:01:52]} 20. Qf3 {[%clk 0:01:31]}  Rb8 {[%clk 0:01:47]} 21. Rxb8 {[%clk 0:01:23]}  Qxb8 {[%clk 0:01:48]} 22. Qxf6 {[%clk 0:01:22]}  Qb1+ {[%clk 0:01:48]} 23. Ke2 {[%clk 0:01:23]}  Qxh1 {[%clk 0:01:42]} 24. Qxf7+ {[%clk 0:01:22]}  Kd8 {[%clk 0:01:43]} 25. Qxd7# {[%clk 0:01:23]} 1-0


[Site "https://www.chess.com"]

[Event "Titled Tuesday Blitz July 18 Late 2023"]
[White "kiwibobo"]
[Black "Liu, Casper"]
[BlackFideId "1454153"]
[WhiteElo "2314"]
[BlackElo "2468"]
[Result "1-0"]
[Round "3"]
[TimeControl "180+2"]
[Date "2023.07.18"]
[WhiteClock "0:01:33"]
[BlackClock "0:01:43"]
[Board "147"]

1. e4 {[%clk 0:03:00]}  c5 {[%clk 0:03:00]} 2. Nf3 {[%clk 0:03:00]}  d6 {[%clk 0:03:00]} 3. d4 {[%clk 0:03:01]}  cxd4 {[%clk 0:03:01]} 4. Nxd4 {[%clk 0:03:02]}  Nf6 {[%clk 0:03:02]} 5. Nc3 {[%clk 0:03:03]}  Nc6 {[%clk 0:03:03]} 6. Be2 {[%clk 0:03:03]}  e5 {[%clk 0:03:02]} 7. Nf3 {[%clk 0:03:03]}  Be7 {[%clk 0:03:03]} 8. Bg5 {[%clk 0:03:03]}  Be6 {[%clk 0:03:02]} 9. O-O {[%clk 0:03:03]}  O-O {[%clk 0:02:57]} 10. Bxf6 {[%clk 0:03:03]}  Bxf6 {[%clk 0:02:58]} 11. Nd5 {[%clk 0:03:03]}  Rc8 {[%clk 0:02:57]} 12. c3 {[%clk 0:03:03]}  Be7 {[%clk 0:02:51]} 13. Qd3 {[%clk 0:03:01]}  f5 {[%clk 0:02:49]} 14. Rad1 {[%clk 0:02:56]}  Kh8 {[%clk 0:02:28]} 15. Nxe7 {[%clk 0:02:52]}  Nxe7 {[%clk 0:02:27]} 16. Qxd6 {[%clk 0:02:49]}  Qxd6 {[%clk 0:02:22]} 17. Rxd6 {[%clk 0:02:50]}  fxe4 {[%clk 0:02:22]} 18. Rxe6 {[%clk 0:02:49]}  exf3 {[%clk 0:02:22]} 19. Bxf3 {[%clk 0:02:49]}  Ng6 {[%clk 0:02:16]} 20. Rd1 {[%clk 0:02:37]}  Rcd8 {[%clk 0:02:15]} 21. Rxd8 {[%clk 0:02:34]}  Rxd8 {[%clk 0:02:16]} 22. g3 {[%clk 0:02:32]}  b6 {[%clk 0:02:11]} 23. Be4 {[%clk 0:02:29]}  Kg8 {[%clk 0:02:09]} 24. Bxg6 {[%clk 0:02:27]}  hxg6 {[%clk 0:02:10]} 25. Rxe5 {[%clk 0:02:25]}  Rd2 {[%clk 0:02:09]} 26. Rb5 {[%clk 0:02:24]}  g5 {[%clk 0:02:08]} 27. h3 {[%clk 0:02:18]}  Kf7 {[%clk 0:02:07]} 28. a4 {[%clk 0:02:15]}  Kf6 {[%clk 0:02:04]} 29. a5 {[%clk 0:02:12]}  bxa5 {[%clk 0:02:03]} 30. Rxa5 {[%clk 0:02:13]}  Rxb2 {[%clk 0:02:03]} 31. Rxa7 {[%clk 0:02:14]}  Rc2 {[%clk 0:02:03]} 32. Rc7 {[%clk 0:02:14]}  Kg6 {[%clk 0:02:02]} 33. Kg2 {[%clk 0:02:14]}  Kf6 {[%clk 0:02:02]} 34. Kf3 {[%clk 0:02:14]}  Kg6 {[%clk 0:02:02]} 35. Rc8 {[%clk 0:02:13]}  Kf6 {[%clk 0:02:03]} 36. Kg4 {[%clk 0:02:10]}  Kg6 {[%clk 0:02:02]} 37. Rc6+ {[%clk 0:02:10]}  Kf7 {[%clk 0:02:01]} 38. Kxg5 {[%clk 0:02:08]}  Rxf2 {[%clk 0:02:01]} 39. g4 {[%clk 0:02:06]}  Rh2 {[%clk 0:01:51]} 40. h4 {[%clk 0:02:06]}  Re2 {[%clk 0:01:51]} 41. c4 {[%clk 0:02:03]}  Re5+ {[%clk 0:01:50]} 42. Kf4 {[%clk 0:02:03]}  Re1 {[%clk 0:01:51]} 43. c5 {[%clk 0:02:03]}  Rc1 {[%clk 0:01:51]} 44. Rc8 {[%clk 0:02:02]}  Kf6 {[%clk 0:01:50]} 45. c6 {[%clk 0:01:59]}  Rc4+ {[%clk 0:01:50]} 46. Kg3 {[%clk 0:01:59]}  Rc3+ {[%clk 0:01:49]} 47. Kf2 {[%clk 0:01:59]}  Rc2+ {[%clk 0:01:50]} 48. Ke3 {[%clk 0:01:59]}  Rc3+ {[%clk 0:01:49]} 49. Kd4 {[%clk 0:01:59]}  Rc1 {[%clk 0:01:45]} 50. c7 {[%clk 0:01:57]}  Kf7 {[%clk 0:01:45]} 51. Ke4 {[%clk 0:01:49]}  Re1+ {[%clk 0:01:43]} 52. Kf4 {[%clk 0:01:48]}  Rf1+ {[%clk 0:01:43]} 53. Kg5 {[%clk 0:01:47]}  Rc1 {[%clk 0:01:44]} 54. Kh5 {[%clk 0:01:40]}  Rc4 {[%clk 0:01:44]} 55. Kg5 {[%clk 0:01:37]}  Rc5+ {[%clk 0:01:43]} 56. Kf4 {[%clk 0:01:37]}  Rc4+ {[%clk 0:01:44]} 57. Ke5 {[%clk 0:01:37]}  Rc5+ {[%clk 0:01:44]} 58. Kd6 {[%clk 0:01:37]}  Rc1 {[%clk 0:01:45]} 59. Rh8 {[%clk 0:01:33]}  Rd1+ {[%clk 0:01:45]} 60. Ke5 {[%clk 0:01:33]}  Re1+ {[%clk 0:01:45]} 61. Kf4 {[%clk 0:01:33]}  Rf1+ {[%clk 0:01:45]} 62. Kg3 {[%clk 0:01:34]}  Rg1+ {[%clk 0:01:43]} 63. Kf2 {[%clk 0:01:33]} 1-0


[Site "https://www.chess.com"]

[Event "Titled Tuesday Blitz July 18 Late 2023"]
[White "Ai, Evan"]
[Black "UgarteCesar"]
[WhiteFideId "2094770"]
[WhiteElo "2432"]
[BlackElo "2231"]
[Result "0-1"]
[Round "3"]
[TimeControl "180+2"]
[Date "2023.07.18"]
[WhiteClock "0:00:00"]
[BlackClock "0:00:15"]
[Board "150"]

1. d4 {[%clk 0:03:00]}  d5 {[%clk 0:02:59]} 2. c4 {[%clk 0:02:59]}  e6 {[%clk 0:02:59]} 3. Nf3 {[%clk 0:02:59]}  h6 {[%clk 0:02:59]} 4. g3 {[%clk 0:02:59]}  Nf6 {[%clk 0:02:58]} 5. Bg2 {[%clk 0:02:59]}  Nbd7 {[%clk 0:02:59]} 6. Nc3 {[%clk 0:02:59]}  Bb4 {[%clk 0:02:57]} 7. Qb3 {[%clk 0:02:57]}  c5 {[%clk 0:02:51]} 8. a3 {[%clk 0:02:56]}  dxc4 {[%clk 0:02:49]} 9. Qxc4 {[%clk 0:02:54]}  Nb6 {[%clk 0:02:17]} 10. Qb3 {[%clk 0:02:49]}  Bxc3+ {[%clk 0:02:07]} 11. bxc3 {[%clk 0:02:50]}  cxd4 {[%clk 0:01:55]} 12. cxd4 {[%clk 0:02:51]}  O-O {[%clk 0:01:54]} 13. O-O {[%clk 0:02:50]}  Bd7 {[%clk 0:01:55]} 14. Bf4 {[%clk 0:02:49]}  Ba4 {[%clk 0:01:53]} 15. Qa2 {[%clk 0:02:47]}  Rc8 {[%clk 0:01:52]} 16. Rac1 {[%clk 0:02:47]}  Qd5 {[%clk 0:01:51]} 17. Qxd5 {[%clk 0:02:42]}  Nfxd5 {[%clk 0:01:52]} 18. Bd6 {[%clk 0:02:42]}  Rfd8 {[%clk 0:01:51]} 19. Bc5 {[%clk 0:02:40]}  Bb5 {[%clk 0:01:50]} 20. Rfe1 {[%clk 0:02:36]}  Nc4 {[%clk 0:01:08]} 21. e4 {[%clk 0:02:32]}  Nf6 {[%clk 0:01:04]} 22. Bf1 {[%clk 0:02:27]}  b6 {[%clk 0:00:53]} 23. Be7 {[%clk 0:01:50]}  Rd7 {[%clk 0:00:53]} 24. Bxf6 {[%clk 0:01:50]}  gxf6 {[%clk 0:00:54]} 25. d5 {[%clk 0:01:16]}  Rdc7 {[%clk 0:00:50]} 26. dxe6 {[%clk 0:00:51]}  fxe6 {[%clk 0:00:51]} 27. Nd4 {[%clk 0:00:36]}  Bd7 {[%clk 0:00:49]} 28. Rc3 {[%clk 0:00:30]}  Ne5 {[%clk 0:00:48]} 29. Rxc7 {[%clk 0:00:29]}  Rxc7 {[%clk 0:00:48]} 30. f4 {[%clk 0:00:29]}  Nc6 {[%clk 0:00:46]} 31. Nb5 {[%clk 0:00:29]}  Rb7 {[%clk 0:00:45]} 32. Nd6 {[%clk 0:00:29]}  Rb8 {[%clk 0:00:45]} 33. Bb5 {[%clk 0:00:27]}  Rd8 {[%clk 0:00:37]} 34. Rc1 {[%clk 0:00:19]}  Nd4 {[%clk 0:00:37]} 35. Bxd7 {[%clk 0:00:16]}  Rxd7 {[%clk 0:00:38]} 36. Rc8+ {[%clk 0:00:14]}  Kh7 {[%clk 0:00:36]} 37. Ne8 {[%clk 0:00:14]}  Kg6 {[%clk 0:00:28]} 38. e5 {[%clk 0:00:13]}  fxe5 {[%clk 0:00:28]} 39. fxe5 {[%clk 0:00:14]}  Nf3+ {[%clk 0:00:28]} 40. Kf2 {[%clk 0:00:14]}  Nxe5 {[%clk 0:00:29]} 41. Nc7 {[%clk 0:00:13]}  Rd2+ {[%clk 0:00:27]} 42. Ke3 {[%clk 0:00:12]}  Rc2 {[%clk 0:00:28]} 43. Ke4 {[%clk 0:00:08]}  Ng4 {[%clk 0:00:27]} 44. Rg8+ {[%clk 0:00:04]}  Kh7 {[%clk 0:00:26]} 45. Rxg4 {[%clk 0:00:04]}  Rxc7 {[%clk 0:00:25]} 46. Ke5 {[%clk 0:00:04]}  Rc3 {[%clk 0:00:22]} 47. a4 {[%clk 0:00:04]}  Rc2 {[%clk 0:00:19]} 48. Kxe6 {[%clk 0:00:04]}  Rxh2 {[%clk 0:00:19]} 49. Kd6 {[%clk 0:00:04]}  Rc2 {[%clk 0:00:18]} 50. Ke6 {[%clk 0:00:03]}  h5 {[%clk 0:00:18]} 51. Rg5 {[%clk 0:00:03]}  Kh6 {[%clk 0:00:18]} 52. Rg8 {[%clk 0:00:03]}  Rc4 {[%clk 0:00:17]} 53. Ra8 {[%clk 0:00:02]}  Rxa4 {[%clk 0:00:17]} 54. Kf6 {[%clk 0:00:00]}  h4 {[%clk 0:00:15]} 0-1


[Site "https://www.chess.com"]

[Event "Titled Tuesday Blitz July 18 Late 2023"]
[White "Gatterer, Florian"]
[Black "Floresvillar Gonzalez, Luis Migu"]
[WhiteFideId "811688"]
[BlackFideId "5100542"]
[WhiteElo "2423"]
[BlackElo "2076"]
[Result "1/2-1/2"]
[Round "3"]
[TimeControl "180+2"]
[Date "2023.07.18"]
[WhiteClock "0:00:10"]
[BlackClock "0:00:03"]
[Board "152"]

1. Nf3 {[%clk 0:03:00]}  d5 {[%clk 0:02:58]} 2. g3 {[%clk 0:02:59]}  Bf5 {[%clk 0:02:58]} 3. Bg2 {[%clk 0:02:58]}  c6 {[%clk 0:02:58]} 4. O-O {[%clk 0:02:58]}  Nf6 {[%clk 0:02:58]} 5. d4 {[%clk 0:02:58]}  Nbd7 {[%clk 0:02:55]} 6. c4 {[%clk 0:02:58]}  e6 {[%clk 0:02:55]} 7. Nc3 {[%clk 0:02:57]}  Bd6 {[%clk 0:02:54]} 8. Qb3 {[%clk 0:02:55]}  Qb6 {[%clk 0:02:47]} 9. c5 {[%clk 0:02:55]}  Qxb3 {[%clk 0:02:47]} 10. axb3 {[%clk 0:02:56]}  Bc7 {[%clk 0:02:46]} 11. b4 {[%clk 0:02:56]}  O-O {[%clk 0:02:30]} 12. b5 {[%clk 0:02:56]}  e5 {[%clk 0:02:19]} 13. bxc6 {[%clk 0:02:39]}  bxc6 {[%clk 0:02:17]} 14. dxe5 {[%clk 0:02:35]}  Nxe5 {[%clk 0:02:15]} 15. Nd4 {[%clk 0:02:35]}  Bd7 {[%clk 0:02:13]} 16. e4 {[%clk 0:02:23]}  dxe4 {[%clk 0:02:10]} 17. Nxe4 {[%clk 0:02:22]}  Nxe4 {[%clk 0:02:10]} 18. Bxe4 {[%clk 0:02:22]}  f5 {[%clk 0:02:07]} 19. Bg2 {[%clk 0:02:15]}  h6 {[%clk 0:02:00]} 20. Bf4 {[%clk 0:02:12]}  g5 {[%clk 0:01:47]} 21. Bxe5 {[%clk 0:02:10]}  Bxe5 {[%clk 0:01:47]} 22. Nxc6 {[%clk 0:02:10]}  Bxc6 {[%clk 0:01:32]} 23. Bxc6 {[%clk 0:02:07]}  Rab8 {[%clk 0:01:31]} 24. Bd5+ {[%clk 0:01:59]}  Kh8 {[%clk 0:01:29]} 25. Rxa7 {[%clk 0:01:53]}  Rxb2 {[%clk 0:01:28]} 26. c6 {[%clk 0:01:53]}  Rc2 {[%clk 0:01:26]} 27. Ra4 {[%clk 0:01:42]}  f4 {[%clk 0:01:24]} 28. g4 {[%clk 0:01:40]}  Rc8 {[%clk 0:01:15]} 29. Kg2 {[%clk 0:01:38]}  Rc7 {[%clk 0:01:11]} 30. Re4 {[%clk 0:01:31]}  Bd6 {[%clk 0:01:08]} 31. Re6 {[%clk 0:01:24]}  Bf8 {[%clk 0:00:52]} 32. Ra1 {[%clk 0:01:22]}  Kg7 {[%clk 0:00:48]} 33. Ra8 {[%clk 0:01:14]}  Bc5 {[%clk 0:00:46]} 34. Rd8 {[%clk 0:01:01]}  Rxf2+ {[%clk 0:00:46]} 35. Kh3 {[%clk 0:01:01]}  Rd2 {[%clk 0:00:27]} 36. Ree8 {[%clk 0:00:32]}  Bg1 {[%clk 0:00:23]} 37. Bg2 {[%clk 0:00:23]}  Rxd8 {[%clk 0:00:21]} 38. Rxd8 {[%clk 0:00:23]}  Bb6 {[%clk 0:00:17]} 39. Rd7+ {[%clk 0:00:22]}  Rxd7 {[%clk 0:00:16]} 40. cxd7 {[%clk 0:00:23]}  Kf6 {[%clk 0:00:16]} 41. Bc6 {[%clk 0:00:23]}  Ke7 {[%clk 0:00:15]} 42. Kg2 {[%clk 0:00:23]}  Be3 {[%clk 0:00:14]} 43. Kf3 {[%clk 0:00:22]}  Bg1 {[%clk 0:00:14]} 44. h3 {[%clk 0:00:22]}  Bb6 {[%clk 0:00:12]} 45. Ba4 {[%clk 0:00:21]}  Bd8 {[%clk 0:00:11]} 46. Ke4 {[%clk 0:00:21]}  Ke6 {[%clk 0:00:11]} 47. Bb5 {[%clk 0:00:19]}  Bf6 {[%clk 0:00:09]} 48. Ba4 {[%clk 0:00:18]}  Kd6 {[%clk 0:00:06]} 49. Kf5 {[%clk 0:00:17]}  Bd8 {[%clk 0:00:06]} 50. Kg6 {[%clk 0:00:16]}  f3 {[%clk 0:00:06]} 51. Kxh6 {[%clk 0:00:14]}  f2 {[%clk 0:00:06]} 52. Bb5 {[%clk 0:00:14]}  Kc5 {[%clk 0:00:05]} 53. Bf1 {[%clk 0:00:13]}  Kd6 {[%clk 0:00:05]} 54. Kg6 {[%clk 0:00:10]}  Kxd7 {[%clk 0:00:05]} 55. Kf5 {[%clk 0:00:10]}  Kd6 {[%clk 0:00:05]} 56. h4 {[%clk 0:00:08]}  gxh4 {[%clk 0:00:04]} 57. g5 {[%clk 0:00:09]}  Bxg5 {[%clk 0:00:02]} 58. Kxg5 {[%clk 0:00:09]}  h3 {[%clk 0:00:03]} 59. Bxh3 {[%clk 0:00:09]}  f1=Q {[%clk 0:00:03]} 60. Bxf1 {[%clk 0:00:10]} 1/2-1/2


[Site "https://www.chess.com"]